[Event "FISCA Open 2022"]
[Site "Cap Aurora"]
[Date "2022.06.25"]
[Round "5.10"]
[White "Ribarov, Valerij"]
[Black "Nacu, Mihai"]
[Result "1/2-1/2"]
[ECO "B11"]
[WhiteElo "1918"]
[BlackElo "1641"]
[Annotator "NA RC"]
[PlyCount "43"]
[EventDate "2022.06.22"]
[EventType "swiss"]
[EventCountry "ROU"]
[SourceTitle "playchess.com"]
[Source "ChessBase"]
[SourceQuality "1"]
[TimeControl "5400+30"]

1. e4 {[%emt 0:12:15]} c6 {[%emt 0:00:15]} 2. Nc3 {[%emt 0:01:41]} d5 {[%emt 0:00:08]} 3. Nf3 {[%emt 0:00:06]} Bg4 {[%emt 0:00:14]} 4. h3 {[%emt 0:01:38]} Bxf3 {[%emt 0:00:07]} 5. Qxf3 {[%emt 0:00:02]} e6 {[%emt 0:00:10]} 6. d4 {[%emt 0:01:27]} Nf6 {[%emt 0:00:11]} 7. Bg5 {[%emt 0:07:31]} Be7 {[%emt 0:00:51]} 8. exd5 {[%emt 0:01:55]} Nxd5 {[%emt 0:02:05]} 9. Bxe7 {[%emt 0:01:34]} Qxe7 {[%emt 0:00:14]} 10. Nxd5 {[%emt 0:00:43]} exd5+ {[%emt 0:00:44]} 11. Qe2 {[%emt 0:00:21]} Qxe2+ {[%emt 0:00:09]} 12. Bxe2 {[%emt 0:00:03]} Nd7 {[%emt 0:01:31]} 13. Bd3 {[%emt 0:00:20]} O-O-O {[%emt 0:01:00]} 14. Kd2 {[%emt 0:00:11]} Kc7 {[%emt 0:00:31]} 15. Rhe1 {[%emt 0:00:28]} Rhe8 {[%emt 0:02:11]} 16. Rxe8 {[%emt 0:04:40]} Rxe8 {[%emt 0:00:06]} 17. Re1 {[%emt 0:00:07]} Rxe1 {[%emt 0:00:05]} 18. Kxe1 {[%emt 0:00:08]} h6 {[%emt 0:00:16]} 19. Kd2 {[%emt 0:00:11]} Kd6 {[%emt 0:00:18]} 20. Ke3 {[%emt 0:00:16]} Nf8 {[%emt 0:03:34]} 21. f4 {[%emt 0:03:41]} b6 {[%emt 0:00:58]} 22. c3 {[%emt 0:02:46]} 1/2-1/2

[Event "FISCA Open 2022"]
[Site "Cap Aurora"]
[Date "2022.06.25"]
[Round "5.11"]
[White "Roncea, Andreea-Alexandra"]
[Black "Stegaroiu, Marcel-Florian"]
[Result "0-1"]
[ECO "B30"]
[WhiteElo "1463"]
[BlackElo "1917"]
[Annotator "NA COMBH RC"]
[PlyCount "100"]
[EventDate "2022.06.22"]
[EventType "swiss"]
[EventCountry "ROU"]
[SourceTitle "playchess.com"]
[Source "ChessBase"]
[SourceQuality "1"]
[TimeControl "5400+30"]

1. e4 {[%emt 0:00:04]} c5 {[%emt 0:00:08]} 2. Nf3 {[%emt 0:00:06]} Nc6 {[%emt 0:00:11]} 3. Bb5 {[%emt 0:00:08]} a6 {[%emt 0:00:44]} 4. Bxc6 {[%emt 0:00:20]} dxc6 {[%emt 0:00:15]} 5. O-O {[%emt 0:00:27]} g6 {[%emt 0:00:25]} 6. d3 {[%emt 0:01:50]} Bg7 {[%emt 0:00:06]} 7. Nbd2 {[%emt 0:00:44]} Nf6 {[%emt 0:01:23]} 8. Re1 {[%emt 0:01:50]} O-O {[%emt 0:00:26]} 9. h3 {[%emt 0:00:59]} h6 {[%emt 0:02:58]} 10. Nb3 {[%emt 0:00:41]} c4 {[%emt 0:01:02]} 11. Nbd4 {[%emt 0:06:20]} cxd3 {[%emt 0:01:41]} 12. Qxd3 {[%emt 0:01:22]} c5 {[%emt 0:03:32]} 13. Nb3 {[%emt 0:02:30]} Qxd3 {[%emt 0:00:28]} 14. cxd3 {[%emt 0:00:07]} b6 {[%emt 0:00:19]} 15. a4 {[%emt 0:01:28]} Be6 {[%emt 0:03:03]} 16. Ra3 {[%emt 0:02:42]} Rfd8 {[%emt 0:07:23]} 17. Nbd2 {[%emt 0:08:48]} Nd7 {[%emt 0:17:17]} 18. Re2 {[%emt 0:09:19]} b5 {[%emt 0:02:07]} 19. axb5 {[%emt 0:03:23]} axb5 {[%emt 0:00:10]} 20. Nf1 {[%emt 0:01:15]} Rxa3 {[%emt 0:02:02]} 21. bxa3 {[%emt 0:00:07]} Ra8 {[%emt 0:01:49]} 22. Bb2 {[%emt 0:12:52]} Bxb2 {[%emt 0:00:58]} 23. Rxb2 {[%emt 0:00:08]} Rxa3 {[%emt 0:00:05]} 24. d4 {[%emt 0:00:43]} Bc4 {[%emt 0:03:18]} 25. N1d2 {[%emt 0:03:26]} Bd3 {[%emt 0:02:41]} 26. dxc5 {[%emt 0:00:34]} Nxc5 {[%emt 0:00:22]} 27. Nd4 {[%emt 0:01:41]} Ra8 {[%emt 0:08:35]} 28. Nc6 {[%emt 0:03:20]} Nxe4 {[%emt 0:05:40]} 29. Nxe4 {[%emt 0:03:35]} Bxe4 {[%emt 0:00:32]} 30. Nxe7+ {[%emt 0:01:49]} Kf8 {[%emt 0:00:19]} 31. Rb4 {[%emt 0:00:10]} Ra4 {[%emt 0:02:03]} 32. Nxg6+ {[%emt 0:00:11]} fxg6 {[%emt 0:01:59]} 33. Rxb5 {[%emt 0:00:11]} Bf5 {[%emt 0:02:57]} 34. Rb3 {[%emt 0:02:24]} Kg7 {[%emt 0:00:58]} 35. Rb6 {[%emt 0:00:49]} h5 {[%emt 0:01:11]} 36. Rc6 {[%emt 0:00:39]} h4 {[%emt 0:00:31]} 37. Rb6 {[%emt 0:02:50]} Ra1+ {[%emt 0:02:39]} 38. Kh2 {[%emt 0:00:09]} Rb1 {[%emt 0:00:56]} 39. Ra6 {[%emt 0:01:06]} Kh6 {[%emt 0:01:05]} 40. Ra8 {[%emt 0:01:26]} Rf1 {[%emt 0:01:06]} 41. Ra2 {[%emt 0:01:12]} Kg5 {[%emt 0:01:06]} 42. Rb2 {[%emt 0:01:01]} Rc1 {[%emt 0:05:22]} 43. Ra2 {[%emt 0:00:25]} Rc2 {[%emt 0:00:32]} 44. Ra4 {[%emt 0:03:07]} Rxf2 {[%emt 0:00:18]} 45. Kg1 {[%emt 0:00:33]} Rb2 {[%emt 0:01:23]} 46. Kh2 {[%emt 0:00:17]} Bd3 {[%emt 0:02:09]} 47. Rg4+ {[%emt 0:00:32]} Kh5 {[%emt 0:00:25]} 48. Rf4 {[%emt 0:01:25]} g5 {[%emt 0:00:24]} 49. Rf8 {[%emt 0:00:12]} Be4 {[%emt 0:00:17]} 50. Kh1 {[%emt 0:00:39] Check Result:-#12} Bxg2+ {[%emt 0:00:21]} 0-1

[Event "FISCA Open 2022"]
[Site "Cap Aurora"]
[Date "2022.06.25"]
[Round "5.12"]
[White "Corbu, George-Alexandru"]
[Black "Rata, Anamaria"]
[Result "0-1"]
[ECO "D30"]
[WhiteElo "1914"]
[BlackElo "1656"]
[Annotator "NA RC"]
[PlyCount "134"]
[EventDate "2022.06.22"]
[EventType "swiss"]
[EventCountry "ROU"]
[SourceTitle "playchess.com"]
[Source "ChessBase"]
[SourceQuality "1"]
[TimeControl "5400+30"]

1. d4 {[%emt 1:31:00]} d5 {[%emt 1:31:00]} 2. c4 {[%emt 0:00:30]} c6 {[%emt 0:00:30]} 3. Nf3 {[%emt 0:00:30]} Nf6 {[%emt 0:00:30]} 4. e3 {[%emt 0:00:30]} e6 {[%emt 0:00:30]} 5. b3 {[%emt 0:00:30]} Nbd7 {[%emt 0:00:30]} 6. Bb2 {[%emt 0:00:30]} b6 {[%emt 0:00:30]} 7. Nbd2 {[%emt 0:00:30]} Bb7 {[%emt 0:00:30]} 8. Bd3 {[%emt 0:00:30]} Be7 {[%emt 0:00:30]} 9. O-O {[%emt 0:00:30]} O-O {[%emt 0:00:30]} 10. Ne5 {[%emt 0:00:30]} dxc4 {[%emt 0:00:30]} 11. Bxc4 {[%emt 0:00:30]} c5 {[%emt 0:00:30]} 12. f4 {[%emt 0:00:30]} cxd4 {[%emt 0:00:30]} 13. exd4 Nd5 {[%emt 0:00:30]} 14. Qe2 {[%emt 0:01:00]} N7f6 {[%emt 0:00:30]} 15. g4 {[%emt 0:00:30]} Nb4 {[%emt 0:00:30]} 16. Ndf3 {[%emt 0:00:30]} Nfd5 {[%emt 0:00:30]} 17. Ne1 {[%emt 0:00:30]} Nc6 {[%emt 0:00:30]} 18. N1d3 {[%emt 0:00:30]} Bf6 {[%emt 0:00:30]} 19. Rad1 {[%emt 0:00:30]} Qd6 {[%emt 0:00:30]} 20. Qf2 {[%emt 0:00:30]} Rac8 {[%emt 0:00:30]} 21. g5 {[%emt 0:00:30]} Be7 {[%emt 0:00:30]} 22. Ng4 {[%emt 0:00:30]} a6 {[%emt 0:00:30]} 23. Nde5 {[%emt 0:00:30]} Nxe5 {[%emt 0:00:30]} 24. fxe5 {[%emt 0:00:30]} Qd8 {[%emt 0:00:30]} 25. h4 {[%emt 0:00:30]} Bxg5 {[%emt 0:00:30]} 26. hxg5 {[%emt 0:00:30]} Qxg5 {[%emt 0:00:30]} 27. Qg2 Ne3 {[%emt 0:00:30]} 28. Nxe3 {[%emt 0:01:00]} Bxg2 {[%emt 0:00:30]} 29. Nxg2 {[%emt 0:00:30]} b5 {[%emt 0:00:30]} 30. Bd3 {[%emt 0:00:30]} h5 {[%emt 0:00:30]} 31. Rf4 {[%emt 0:00:30]} f6 {[%emt 0:00:30]} 32. Rdf1 {[%emt 0:00:30]} fxe5 {[%emt 0:00:30]} 33. Bh7+ {[%emt 0:00:30]} Kxh7 {[%emt 0:00:30]} 34. Rxf8 {[%emt 0:00:30]} Rxf8 {[%emt 0:00:30]} 35. Rxf8 {[%emt 0:00:30]} h4 {[%emt 0:00:30]} 36. Rf3 {[%emt 0:00:30]} Qg4 {[%emt 0:00:30]} 37. Kf2 {[%emt 0:00:30]} e4 {[%emt 0:00:30]} 38. Re3 {[%emt 0:00:30]} h3 {[%emt 0:00:30]} 39. Rg3 {[%emt 0:00:30]} Qf5+ {[%emt 0:00:30]} 40. Kg1 {[%emt 0:00:30]} hxg2 {[%emt 0:00:30]} 41. Rxg2 {[%emt 0:00:30]} e3 {[%emt 0:00:30]} 42. Bc3 {[%emt 0:00:30]} Qf3 {[%emt 0:00:30]} 43. Be1 {[%emt 0:00:30]} Qd1 {[%emt 0:00:30]} 44. Kf1 {[%emt 0:00:30]} Qxd4 {[%emt 0:00:30]} 45. Ke2 {[%emt 0:00:30]} Qb2+ {[%emt 0:00:30]} 46. Kf3 {[%emt 0:00:30]} Qc1 {[%emt 0:00:30]} 47. Re2 {[%emt 0:00:30]} Qc6+ {[%emt 0:00:30]} 48. Kxe3 {[%emt 0:00:30]} Qc1+ {[%emt 0:00:30]} 49. Kf3 {[%emt 0:00:30]} Qc6+ {[%emt 0:00:30]} 50. Ke3 {[%emt 0:00:30]} Kg6 {[%emt 0:00:30]} 51. Bg3 {[%emt 0:00:30]} Qc3+ {[%emt 0:00:30]} 52. Kf2 {[%emt 0:00:30]} Kf5 {[%emt 0:00:30]} 53. Re3 {[%emt 0:00:30]} Qd2+ {[%emt 0:00:30]} 54. Re2 {[%emt 0:00:30]} Qd4+ {[%emt 0:00:30]} 55. Kg2 {[%emt 0:00:30]} Kg4 {[%emt 0:00:30]} 56. Be5 {[%emt 0:00:30]} Qd3 {[%emt 0:00:30]} 57. Kf2 {[%emt 0:00:30]} Qf5+ {[%emt 0:00:30]} 58. Kg1 {[%emt 0:00:30]} g5 {[%emt 0:00:30]} 59. Bb8 {[%emt 0:00:30]} Kh5 {[%emt 0:00:30]} 60. Be5 {[%emt 0:00:30]} g4 {[%emt 0:00:30]} 61. Bg3 {[%emt 0:00:30]} Qc5+ {[%emt 0:00:30]} 62. Kh2 {[%emt 0:00:30]} Qc6 {[%emt 0:00:30]} 63. Rf2 {[%emt 0:00:30]} Kg5 {[%emt 0:00:30]} 64. Re2 {[%emt 0:00:30]} Kg6 {[%emt 0:00:30]} 65. Rf2 {[%emt 0:00:30]} Qd5 {[%emt 0:00:30]} 66. Re2 {[%emt 0:00:30]} Qf5 {[%emt 0:00:30]} 67. Rf2 {[%emt 0:00:30]} Qd3 {[%emt 0:00:30]} 0-1

[Event "FISCA Open 2022"]
[Site "Cap Aurora"]
[Date "2022.06.25"]
[Round "5.13"]
[White "Stancu, Ovidiu-Grigore"]
[Black "Iordache, Alexia-Andreea"]
[Result "0-1"]
[ECO "B50"]
[WhiteElo "1867"]
[BlackElo "1658"]
[Annotator "NA RC"]
[PlyCount "67"]
[EventDate "2022.06.22"]
[EventType "swiss"]
[EventCountry "ROU"]
[SourceTitle "playchess.com"]
[Source "ChessBase"]
[SourceQuality "1"]
[TimeControl "5400+30"]

1. e4 {[%emt 0:00:11]} c5 {[%emt 0:00:04]} 2. Nf3 {[%emt 0:00:10]} d6 {[%emt 0:00:03]} 3. c3 {[%emt 0:00:07]} Nf6 {[%emt 0:00:31]} 4. Bc4 {[%emt 0:03:32]} e6 {[%emt 0:05:09]} 5. Qe2 {[%emt 0:00:09]} Nc6 {[%emt 0:01:46]} 6. d4 {[%emt 0:00:59]} cxd4 {[%emt 0:03:45]} 7. cxd4 {[%emt 0:00:31]} Be7 {[%emt 0:03:14]} 8. d5 {[%emt 0:06:10]} Nb8 {[%emt 0:07:48]} 9. Bb5+ {[%emt 0:04:49]} Bd7 {[%emt 0:02:01]} 10. dxe6 {[%emt 0:00:20]} fxe6 {[%emt 0:00:55]} 11. Nc3 {[%emt 0:00:49]} O-O {[%emt 0:02:51]} 12. e5 {[%emt 0:02:56]} Ng4 {[%emt 0:08:15]} 13. exd6 {[%emt 0:07:55]} Bxd6 {[%emt 0:00:40]} 14. h3 {[%emt 0:01:25]} Nf6 {[%emt 0:03:37]} 15. O-O {[%emt 0:00:45]} a6 {[%emt 0:10:50]} 16. Bc4 {[%emt 0:05:26]} Re8 {[%emt 0:04:42]} 17. Nd4 {[%emt 0:02:55]} Nc6 {[%emt 0:03:06]} 18. Nxc6 {[%emt 0:05:05]} bxc6 {[%emt 0:00:16]} 19. Bg5 {[%emt 0:00:24]} Qc7 {[%emt 0:13:03]} 20. Bxf6 {[%emt 0:00:13]} gxf6 {[%emt 0:00:03]} 21. Ne4 {[%emt 0:01:37]} Be5 {[%emt 0:02:58]} 22. Qf3 {[%emt 0:03:07]} Qd8 {[%emt 0:04:28]} 23. Rad1 {[%emt 0:00:39]} Qe7 {[%emt 0:02:01]} 24. Rd2 {[%emt 0:02:21]} Ra7 {[%emt 0:05:35]} 25. Qe3 {[%emt 0:01:58]} Bc8 {[%emt 0:02:37]} 26. f4 {[%emt 0:00:27]} Bb8 {[%emt 0:01:13]} 27. f5 {[%emt 0:02:02]} Kh8 {[%emt 0:01:27]} 28. Qh6 {[%emt 0:03:36]} exf5 {[%emt 0:03:34]} 29. Nxf6 {[%emt 0:04:39]} Rf8 {[%emt 0:01:32]} 30. Nxh7 {[%emt 0:00:21]} Qc5+ {[%emt 0:00:56]} 31. Kh1 {[%emt 0:05:47]} Rxh7 {[%emt 0:00:07]} 32. Qg5 {[%emt 0:02:58]} Qxc4 {[%emt 0:00:18]} 33. Rdf2 {[%emt 0:02:01]} Qg8 {[%emt 0:01:58]} 34. Qh6 {[%emt 0:31:06]} 0-1

[Event "FISCA Open 2022"]
[Site "Cap Aurora"]
[Date "2022.06.26"]
[Round "6.1"]
[White "Coca, Cristi-Iulian"]
[Black "Ardeleanu, Alin"]
[Result "1-0"]
[ECO "C90"]
[WhiteElo "2174"]
[BlackElo "2290"]
[Annotator "TA"]
[PlyCount "105"]
[EventDate "2022.06.22"]
[EventType "swiss"]
[EventCountry "ROU"]
[SourceTitle "playchess.com"]
[Source "ChessBase"]
[SourceQuality "1"]
[TimeControl "5400+30"]

{[%evp 19,105,12,13,16,7,1,15,0,0,0,0,0,0,0,118,103,104,113,112,118,109,115,116,115,176,168,154,143,163,155,127,135,159,167,221,212,213,204,222,212,389,245,258,257,247,0,252,247,247,245,249,249,385,341,2211,1575,5763,5375,4851,4282,29942,5838,6587,2259,1383,1383,29978,29977,29961,2422,29981,1706,1652,1688,1564,1381,29978,29974,29976,29977,29977,29978,29978,29979,29986,29987,29985,29984]} 1. e4 {[%emt 0:01:49]} c5 {[%emt 0:02:48]} 2. Nf3 {[%emt 0:00:13]} d6 {[%emt 0:00:49]} 3. c3 {[%emt 0:03:24]} Nf6 {[%emt 0:00:46]} 4. Bd3 {[%emt 0:04:43]} e5 {[%emt 0:12:31]} 5. Bc2 {[%emt 0:02:56]} Nc6 {[%emt 0:01:05]} 6. O-O {[%emt 0:00:39]} Be7 {[%emt 0:08:23]} 7. Re1 {[%emt 0:04:32]} h6 {[%emt 0:07:07]} 8. d3 {[%emt 0:02:30]} a6 {[%emt 0:03:37]} 9. Nbd2 {[%emt 0:01:55][%cal Bb1d2,Bd2f1,Bf1g3][%mdl 32]} b5 {[%emt 0:02:30]} 10. Nf1 {[%emt 0:00:23]} O-O {[%emt 0:00:59]} 11. Ng3 {[%emt 0:01:35] C90: Closed Ruy Lopez with 7...d6: Early deviations.} Re8 {[%emt 0:01:49] [#]} 12. h3 $146 {[%emt 0:05:17]} ({Predecessor:} 12. Qe2 Bf8 13. Nh4 Ne7 14. Bb3 g6 15. Qf3 Nc6 16. Nxg6 Be6 17. Bxe6 Rxe6 18. Nxf8 Kxf8 19. Bxh6+ {1-0 (62) Mukhopadhyay,S (1336)-Waweru,B Al Ain 2013}) 12... Qc7 {[%emt 0:04:55]} 13. d4 {[%emt 0:14:19] The position is equal.} cxd4 {[%emt 0:03:47]} 14. cxd4 {[%emt 0:00:16]} Nxd4 {[%emt 0:02:49]} 15. Nxd4 {[%emt 0:00:27]} exd4 {[%emt 0:00:01]} 16. Bb3 {[%emt 0:01:00]} d5 {[%emt 0:08:43]} (16... Qb6 $11) 17. e5 $1 $16 {[%emt 0:17:27]} Bb4 {[%emt 0:04:15]} 18. Re2 {[%emt 0:00:07]} Ne4 {[%emt 0:01:34]} (18... Rxe5 $2 19. Bf4 Rxe2 20. Bxc7 Re1+ 21. Qxe1 Bxe1 22. Rxe1 $18) 19. Nxe4 {[%emt 0:01:35]} dxe4 {[%emt 0:00:20]} 20. Qxd4 {[%emt 0:00:26]} Bf8 {[%emt 0:07:20]} 21. Qxe4 {[%emt 0:02:55]} Be6 {[%emt 0:00:38]} (21... Rb8 $16 22. Rc2 Qb7) 22. Bxe6 $18 {[%emt 0:01:12]} fxe6 {[%emt 0:00:01]} 23. Rc2 {[%emt 0:01:46]} Qd7 {[%emt 0:00:38]} 24. Be3 {[%emt 0:01:02]} Rac8 {[%emt 0:01:01]} 25. Rd2 {[%emt 0:04:07] Prevents Qd5.} Qc7 {[%emt 0:02:17]} 26. Rad1 {[%emt 0:00:43] White is much more active.} Rcd8 {[%emt 0:01:35]} (26... Qf7 {keeps fighting.} 27. Rd7 Qf5) 27. Rxd8 {[%emt 0:06:28]} Rxd8 {[%emt 0:00:02]} 28. Rxd8 Qxd8 {[%emt 0:00:01][%mdl 4096] Endgame [#] KQB-KQB} 29. Qc6 $1 {[%emt 0:00:35][%csl LRa6,LRe6]} Qd1+ {[%emt 0:09:02]} 30. Kh2 {[%emt 0:01:39]} Kf7 {[%emt 0:00:24]} 31. Qb7+ {[%emt 0:03:39]} Kg6 {[%emt 0:02:06]} 32. Qc6 {[%emt 0:03:13]} Kf7 {[%emt 0:00:37] Prevents Qe8+.} 33. Qxa6 {[%emt 0:00:56]} Qd5 {[%emt 0:00:06] [#]} 34. Qa7+ $1 {[%emt 0:00:17]} Be7 {[%emt 0:04:40]} 35. Qc7 {[%emt 0:00:56]} b4 {[%emt 0:02:12]} (35... Ke8 {was worth a try.} 36. a3 Qb3) 36. a4 {[%emt 0:03:49][%cal Ba2a4,Ba4a5][%mdl 32] a5 is the strong threat.} Kf8 $2 {[%emt 0:04:58]} (36... bxa3 37. bxa3 Qb5) 37. a5 {[%emt 0:00:40]} Qa2 {[%emt 0:00:21]} 38. Bc5 {[%emt 0:01:19]} Bxc5 {[%emt 0:00:05]} 39. Qxc5+ {[%emt 0:00:02] KQ-KQ} Kf7 {[%emt 0:00:06]} 40. Qxb4 {[%emt 0:00:06]} Qd5 {[%emt 0:00:26]} 41. Qc3 {[%emt 0:01:36] Threatening mate with Qf3+.} Qb5 {[%emt 0:00:29]} 42. b4 {[%emt 0:00:25] Qc5 would kill now.} Qf1 {[%emt 0:00:15]} 43. Qc5 {[%emt 0:00:52]} Qa1 {[%emt 0:00:28]} 44. Qe3 {[%emt 0:03:05]} (44. Qd6 $142 Qa2 45. Qc6 Kg8 46. Qb6 Qc4 47. a6 Kh7 48. a7 Qf4+ 49. g3) 44... Qa4 {[%emt 0:01:56]} 45. Qe4 {[%emt 0:00:58]} (45. Qb6 $142 Qa1 46. a6 Qxe5+ 47. g3 Qf6 48. a7 Qf3 49. Qe3 Qb7 50. Qf4+ Ke7 51. Qb8) 45... Qb5 {[%emt 0:00:23]} 46. Qd4 {[%emt 0:00:41] And now Qc5 would win.} h5 {[%emt 0:00:46]} 47. Qc5 {[%emt 0:01:22]} Qa4 {[%emt 0:00:28]} 48. Qc4 {[%emt 0:00:44] White mates.} Qa1 {[%emt 0:00:24]} 49. a6 {[%emt 0:01:34]} Qxe5+ {[%emt 0:00:08]} 50. g3 {[%emt 0:00:02]} Qa1 {[%emt 0:00:49]} 51. Qc7+ {[%emt 0:00:25]} Kf6 {[%emt 0:00:14]} 52. a7 {[%emt 0:00:37]} Qa2 {[%emt 0:00:30]} 53. Qd8+ {[%emt 0:00:19] Weighted Error Value: White=0.13 (very precise) /Black=0.81} 1-0

[Event "FISCA Open 2022"]
[Site "Cap Aurora"]
[Date "2022.06.26"]
[Round "6.2"]
[White "Prisacaru, Stefan-Emilian"]
[Black "Gilea, Lucian"]
[Result "1/2-1/2"]
[ECO "A53"]
[WhiteElo "1937"]
[BlackElo "2277"]
[Annotator "TA"]
[PlyCount "24"]
[EventDate "2022.06.22"]
[EventType "swiss"]
[EventCountry "ROU"]
[SourceTitle "playchess.com"]
[Source "ChessBase"]
[SourceQuality "1"]
[TimeControl "5400+30"]

{[%evp 13,24,46,61,29,38,36,60,43,58,62,57,52,76]} 1. d4 {[%emt 0:00:01] Doe,John} Nf6 {[%emt 0:02:45]} 2. c4 {[%emt 0:00:21]} d6 {[%emt 0:01:22]} 3. Nc3 {[%emt 0:01:33]} c6 {[%emt 0:00:20]} 4. Nf3 {[%emt 0:04:03]} Bf5 {[%emt 0:00:20]} 5. g3 {[%emt 0:06:06]} Nbd7 {[%emt 0:03:01]} 6. Bg2 {[%emt 0:01:41]} h6 {[%emt 0:00:57]} 7. O-O {[%emt 0:09:14]} e5 {[%emt 0:00:48]} 8. Re1 $1 {[%emt 0:01:10][%mdl 4] is currently scoring better than 8.d5. A53: Old Indian Defence without Nf3.} Be7 {[%emt 0:10:17]} 9. e4 {[%emt 0:01:17] White is slightly better.} Bg4 {[%emt 0:05:44]} 10. Be3 {[%emt 0:05:07] [#]} O-O $146 {[%emt 0:00:47]} ({Predecessor:} 10... Qa5 11. Qd2 Bxf3 12. Bxf3 exd4 13. Bxd4 Ne5 14. Be2 g5 15. b4 Qc7 16. Kh1 g4 {1-0 (26) Giammona,F (1713)-Walter Travella,G (1940) Barcelona 2019 EXT 2020 [Doe,John]}) 11. h3 {[%emt 0:06:56]} Bh5 {[%emt 0:00:13]} 12. Qc2 {[%emt 0:02:24]} Bxf3 {[%emt 0:03:24] White took control after the opening.  Weighted Error Value: White=0.12 (very precise) /Black=0.11 (very precise)} 1/2-1/2

[Event "FISCA Open 2022"]
[Site "Cap Aurora"]
[Date "2022.06.26"]
[Round "6.3"]
[White "Daianu, Cristian-Clement"]
[Black "Mintau, Andrei-Catalin"]
[Result "1/2-1/2"]
[ECO "B38"]
[WhiteElo "2149"]
[BlackElo "2130"]
[Annotator "NA RC"]
[PlyCount "80"]
[EventDate "2022.06.22"]
[EventType "swiss"]
[EventCountry "ROU"]
[SourceTitle "playchess.com"]
[Source "ChessBase"]
[SourceQuality "1"]
[TimeControl "5400+30"]

1. e4 {[%emt 0:00:09]} c5 {[%emt 0:00:05]} 2. Nf3 {[%emt 0:00:17]} g6 {[%emt 0:00:04]} 3. d4 {[%emt 0:00:08]} cxd4 {[%emt 0:00:03]} 4. Nxd4 {[%emt 0:00:07]} Bg7 {[%emt 0:00:04]} 5. c4 {[%emt 0:00:20]} Nc6 {[%emt 0:00:06]} 6. Be3 {[%emt 0:00:07]} Nf6 {[%emt 0:00:12]} 7. Nc3 {[%emt 0:00:12]} O-O {[%emt 0:00:14]} 8. Be2 {[%emt 0:00:26]} d6 {[%emt 0:00:06]} 9. O-O {[%emt 0:02:28]} Bd7 {[%emt 0:00:08]} 10. h3 {[%emt 0:01:00]} Nxd4 {[%emt 0:01:00]} 11. Bxd4 {[%emt 0:00:12]} Bc6 {[%emt 0:00:04]} 12. Qc2 {[%emt 0:01:38]} a5 {[%emt 0:06:09]} 13. b3 {[%emt 0:03:23]} Nd7 {[%emt 0:01:03]} 14. Bxg7 {[%emt 0:00:10]} Kxg7 {[%emt 0:00:04]} 15. Rfd1 {[%emt 0:00:08]} Qb6 {[%emt 0:22:39]} 16. a3 {[%emt 0:00:59]} Qc5 {[%emt 0:17:01]} 17. Nd5 {[%emt 0:20:52]} Bxd5 {[%emt 0:01:34]} 18. Qc3+ {[%emt 0:03:42]} Kg8 {[%emt 0:01:13]} 19. b4 {[%emt 0:11:04]} Qc7 {[%emt 0:01:30]} 20. exd5 {[%emt 0:00:23]} b6 {[%emt 0:10:07]} 21. Qd4 {[%emt 0:22:59]} Rfc8 {[%emt 0:08:55]} 22. Bg4 {[%emt 0:03:48]} f5 {[%emt 0:04:12]} 23. Be2 {[%emt 0:00:05]} Ne5 {[%emt 0:01:15]} 24. Qh4 {[%emt 0:12:48]} Ra7 {[%emt 0:09:30]} 25. Rac1 {[%emt 0:03:39]} axb4 {[%emt 0:08:17]} 26. axb4 {[%emt 0:00:05]} Ra4 {[%emt 0:00:09]} 27. f4 {[%emt 0:00:44]} Nf7 {[%emt 0:00:27]} 28. Rb1 {[%emt 0:05:37]} Rca8 {[%emt 0:00:58]} 29. Kh1 {[%emt 0:01:05]} R8a7 {[%emt 0:02:37]} 30. Bf1 {[%emt 0:00:29]} Qd8 {[%emt 0:02:00]} 31. Re1 {[%emt 0:00:31]} Qf8 {[%emt 0:00:21]} 32. Qf2 {[%emt 0:01:23]} Qd8 {[%emt 0:01:47]} 33. Re6 {[%emt 0:03:03]} Ra1 {[%emt 0:00:59]} 34. Rbe1 {[%emt 0:02:02]} Rxe1 {[%emt 0:00:35]} 35. Qxe1 {[%emt 0:00:01]} Qd7 {[%emt 0:00:45]} 36. Kh2 {[%emt 0:01:45]} Kf8 {[%emt 0:00:47]} 37. Qh4 {[%emt 0:00:11]} Kg8 {[%emt 0:00:07]} 38. Qf2 {[%emt 0:00:06]} Rb7 {[%emt 0:00:15]} 39. Qa2 {[%emt 0:00:25]} Ra7 {[%emt 0:00:05]} 40. Qf2 {[%emt 0:00:29]} Rb7 {[%emt 0:00:05]} 1/2-1/2